bitfinex/quotes_SOLUSD_20230903
["timestamp","ask_amount","ask_price","bid_price","bid_amount"]
[1693745990867,9.03399999,19.416,19.388,75.0]
[1693745991072,9.03399999,19.416,19.389,44.21232349]
[1693745991268,24.53384075,19.416,19.39,75.0]
[1693745991873,0.99999999,19.414,19.391,15.13941]
[1693745992075,0.99999999,19.414,19.392,20.0]
[1693745993681,9.03499999,19.414,19.392,20.0]
[1693745993985,0.99999999,19.412,19.392,20.0]
[1693745994868,0.99999999,19.412,19.389,44.21232349]
[1693745995180,16.50441104,19.412,19.39,20.0]
[1693745995491,55.0,19.411,19.386,20.0]
[1693745995782,0.99999999,19.41,19.387,15.14254]
[1693745995993,0.99999999,19.41,19.388,20.0]
[1693745996177,0.99999999,19.41,19.388,118.5496]
[1693745996577,9.03499999,19.414,19.388,118.5496]
[1693745996988,24.53941104,19.414,19.388,118.5496]
[1693745997379,93.7865,19.413,19.388,118.5496]
[1693745997699,55.99999999,19.412,19.388,20.0]
[1693745997994,55.99999999,19.412,19.389,98.5496]
[1693745997995,64.03599999,19.412,19.389,98.5496]
[1693745998173,64.03599999,19.412,19.39,20.0]
[1693745998376,55.99999999,19.412,19.39,20.0]
[1693745998876,55.99999999,19.412,19.388,20.0]
[1693745999076,55.99999999,19.412,19.388,45.73409656]
[1693746000377,0.99999999,19.412,19.389,55.0]
[1693746000685,0.99999999,19.412,19.39,45.73409656]
[1693746000876,0.99999999,19.415,19.391,55.0]
[1693746001071,0.99999999,19.416,19.392,20.0]
[1693746001286,0.99999999,19.416,19.393,55.0]
[1693746001490,0.99999999,19.416,19.394,20.0]
[1693746001878,9.03399999,19.416,19.394,20.0]
[1693746002187,24.53841104,19.416,19.392,55.0]
[1693746002386,24.53841104,19.416,19.393,20.0]
[1693746002589,24.53841104,19.416,19.392,20.0]
[1693746002788,98.1001,19.415,19.392,20.0]
[1693746002990,0.99999999,19.414,19.393,55.0]
[1693746003288,0.99999999,19.414,19.394,20.0]
[1693746003985,0.99999999,19.416,19.394,20.0]
[1693746004289,55.99999999,19.416,19.394,20.0]
[1693746004687,162.13409999,19.416,19.394,20.0]
[1693746004882,180.158484,19.416,19.392,20.0]
[1693746005089,18.02438401,19.415,19.392,20.0]
[1693746005397,8.037,19.41,19.388,20.0]
[1693746005695,55.99999999,19.409,19.388,126.88865]
[1693746005993,55.99999999,19.409,19.388,186.243514]
[1693746006373,55.0,19.408,19.388,186.243514]
[1693746006603,0.99999999,19.409,19.388,186.243514]
[1693746007495,0.99999999,19.409,19.388,126.88865]
[1693746012482,0.99999999,19.409,19.388,106.88865]
[1693746012894,0.99999999,19.409,19.389,20.0]
[1693746016278,0.99999999,19.409,19.388,15.14175]
[1693746016482,15.50441105,19.408,19.385,90.5292]
[1693746016686,15.50441105,19.408,19.378,25.73409656]
[1693746016687,8.04,19.403,19.378,25.73409656]
[1693746016882,45.97,19.407,19.366,53.77945008]
[1693746016883,0.99999999,19.401,19.379,106.70009656]
[1693746017182,0.99999999,19.401,19.366,26.88972504]
[1693746017183,47.72801295,19.401,19.371,90.5292]
[1693746017391,55.0,19.4,19.372,25.73409656]
[1693746017589,0.99999999,19.399,19.373,15.15348]
[1693746017788,20.99999999,19.399,19.374,25.73409656]
[1693746018100,55.0,19.398,19.375,15.15191]
[1693746018297,0.99999999,19.397,19.376,25.73409656]
[1693746018501,20.99999999,19.397,19.376,25.73409656]
[1693746018685,55.0,19.396,19.377,93.891]
[1693746019006,0.99999999,19.395,19.377,93.891]
[1693746019297,0.99999999,19.395,19.377,15.15035]
[1693746019604,0.99999999,19.395,19.378,93.891]
[1693746024290,27.95419369,19.395,19.378,93.891]
[1693746024490,0.99999999,19.393,19.37,48.9512431]
[1693746024704,0.99999999,19.393,19.371,20.0]
[1693746026809,55.0,19.394,19.371,20.0]
[1693746027003,0.99999999,19.393,19.371,20.0]
[1693746027210,0.99999999,19.393,19.37,20.0]
[1693746027404,0.99999999,19.393,19.37,45.73409656]
[1693746027806,0.99999999,19.393,19.37,60.88992656]
[1693746028411,0.99999999,19.393,19.371,121.52799656]
[1693746028711,0.99999999,19.393,19.372,20.0]
[1693746030807,9.04399999,19.393,19.372,20.0]
[1693746031013,0.99999999,19.391,19.372,20.0]
[1693746031200,9.04499999,19.391,19.372,20.0]
[1693746031518,55.0,19.39,19.372,20.0]
[1693746031815,55.0,19.39,19.371,20.0]
[1693746033606,55.0,19.391,19.371,20.0]
[1693746033806,0.99999999,19.39,19.371,20.0]
[1693746034410,0.99999999,19.39,19.368,20.0]
[1693746036209,9.04499999,19.39,19.368,20.0]
[1693746036422,55.0,19.389,19.368,20.0]
[1693746037218,55.0,19.389,19.364,48.9512431]
[1693746037219,55.0,19.389,19.365,20.0]
[1693746037513,0.99999999,19.388,19.365,46.043742]
[1693746037698,9.04599999,19.388,19.365,46.043742]
[1693746037901,75.0,19.387,19.365,26.043742]
[1693746038100,0.99999999,19.386,19.365,26.043742]
[1693746042103,11.56697295,19.386,19.365,0.30964544]
[1693746042416,55.0,19.385,19.361,20.0]
[1693746042719,0.99999999,19.38,19.361,20.0]
[1693746042919,8.051,19.377,19.358,20.0]
[1693746043107,8.051,19.377,19.352,87.42016723]
[1693746043108,55.0,19.376,19.352,87.42016723]
[1693746043314,8.051,19.375,19.353,20.0]
[1693746043517,55.0,19.374,19.352,20.0]
[1693746043704,8.052,19.373,19.352,20.0]
[1693746043904,55.0,19.372,19.351,25.73409656]
[1693746044102,55.0,19.372,19.346,48.9512431]
[1693746044103,8.054,19.37,19.346,48.9512431]
[1693746044306,20.0,19.369,19.344,136.735124]
[1693746044523,167.603,19.367,19.343,25.73409656]
[1693746044721,138.38686833,19.366,19.334,96.6779]
[1693746044906,8.058,19.358,19.334,96.6779]
[1693746045217,8.058,19.358,19.334,122.7079]
[1693746045426,75.0,19.357,19.334,122.7079]
[1693746045716,41.69684427,19.367,19.334,95.47500385]
[1693746045902,95.9589,19.368,19.335,118.96095253]
[1693746045903,20.0,19.366,19.335,118.96095253]
[1693746046108,28.055,19.366,19.335,118.96095253]
[1693746046308,54.079,19.366,19.336,111.86037]
[1693746046512,54.079,19.366,19.336,15.18247]
[1693746046818,43.55941105,19.366,19.337,20.0]
[1693746047417,63.055,19.365,19.337,20.0]
[1693746047915,55.0,19.365,19.337,20.0]
[1693746048308,63.055,19.365,19.337,20.0]
[1693746048718,78.55941105,19.365,19.337,20.0]
[1693746048920,15.5134313,19.364,19.336,15.18247]
[1693746049120,8.059,19.357,19.333,28.05688418]
[1693746049320,20.0,19.356,19.334,20.0]
[1693746049819,20.0,19.356,19.334,35.18405]
[1693746050027,55.0,19.355,19.334,35.18405]
[1693746050207,55.0,19.355,19.334,15.18405]
[1693746050404,55.0,19.355,19.333,28.05688418]
[1693746050609,55.0,19.355,19.334,19.0]
[1693746050810,0.99999999,19.354,19.334,19.0]
[1693746051221,8.06,19.354,19.334,19.0]
[1693746051525,55.0,19.353,19.334,19.0]
[1693746052512,0.99999999,19.352,19.334,19.0]
[1693746052723,55.0,19.353,19.334,19.0]
[1693746053026,63.06,19.353,19.334,19.0]
[1693746053207,0.99999999,19.352,19.334,19.0]
[1693746053407,8.062,19.35,19.334,19.0]
[1693746053613,0.99999999,19.349,19.333,28.05688418]
[1693746053809,8.063,19.347,19.333,28.05688418]
[1693746054009,75.99999999,19.349,19.333,28.05688418]
[1693746054010,9.06399999,19.345,19.333,28.05688418]
[1693746054207,8.064,19.345,19.333,28.05688418]
[1693746054410,61.5614313,19.349,19.333,28.05688418]
[1693746054411,63.064,19.344,19.333,28.05688418]
[1693746054613,8.066,19.34,19.333,28.05688418]
[1693746054824,20.99999999,19.339,19.333,28.05688418]
[1693746055025,75.99999999,19.339,19.333,28.05688418]
[1693746055229,49.6424313,19.338,19.31,100.0]
[1693746055529,181.95698598,19.337,19.31,100.0]
[1693746055715,24.94461036,19.337,19.31,100.0]
[1693746056127,24.94461036,19.337,19.311,98.7214]
[1693746056324,2.51997296,19.335,19.31,100.0]
[1693746056533,8.07,19.331,19.31,100.0]
[1693746056837,20.0,19.33,19.31,100.0]
[1693746057020,8.068,19.334,19.31,100.0]
[1693746057333,11.79754476,19.338,19.31,125.73409656]
[1693746057629,11.79754476,19.338,19.311,25.73409656]
[1693746057825,11.79754476,19.338,19.312,20.0]
[1693746058029,11.79754476,19.338,19.313,25.73409656]
[1693746058528,20.79702476,19.338,19.314,152.6095]
[1693746058711,12.73002476,19.338,19.315,25.73409656]
[1693746058912,3.73054476,19.342,19.316,74.0]
[1693746059125,3.73054476,19.342,19.317,25.73409656]
[1693746059327,51.842385,19.346,19.317,25.73409656]
[1693746059328,51.842385,19.346,19.318,20.0]
[1693746059524,17.82897917,19.355,19.318,68.42967491]
[1693746059736,17.82897917,19.355,19.319,25.73409656]
[1693746059737,3.81824957,19.354,19.319,25.73409656]
[1693746060028,3.81824957,19.354,19.32,68.42967491]
[1693746060227,3.81824957,19.355,19.321,25.73409656]
[1693746060419,15.0629,19.354,19.322,20.0]
[1693746060627,3.81824957,19.353,19.323,25.73409656]
[1693746060823,40.44022253,19.353,19.323,123.71449656]
[1693746061133,111.71638502,19.352,19.323,123.71449656]
[1693746061316,8.063,19.348,19.323,97.9804]
[1693746061521,4.65733095,19.347,19.321,25.73409656]
[1693746061921,55.0,19.346,19.322,97.9804]
[1693746062125,4.65733095,19.345,19.322,97.9804]
[1693746062322,4.65733095,19.343,19.323,20.0]
[1693746062531,4.65733095,19.343,19.322,97.9804]
[1693746062731,4.65733095,19.343,19.317,55.0]
[1693746062732,55.0,19.342,19.317,55.0]
[1693746062940,8.067,19.338,19.313,25.73409656]
[1693746063134,4.65733095,19.337,19.313,25.73409656]
[1693746063435,55.0,19.336,19.313,25.73409656]
[1693746063830,63.068,19.336,19.313,25.73409656]
[1693746064533,3.43139921,19.335,19.313,25.73409656]
[1693746064725,8.069,19.332,19.313,25.73409656]
[1693746065036,3.43139921,19.335,19.313,25.73409656]
[1693746065225,3.49860902,19.336,19.313,25.73409656]
[1693746065427,11.56660902,19.336,19.313,25.73409656]
[1693746065622,8.068,19.336,19.313,25.73409656]
[1693746065823,34.133,19.336,19.312,96.8076]
[1693746066035,3.22095973,19.335,19.313,20.0]
[1693746066233,3.22095973,19.335,19.313,45.73409656]
[1693746066536,3.27704202,19.336,19.313,45.73409656]
[1693746066736,3.60070683,19.333,19.313,45.73409656]
[1693746066931,3.60070683,19.335,19.313,45.73409656]
[1693746067127,8.069,19.333,19.313,25.73409656]
[1693746067331,3.60070683,19.332,19.31,100.0]
[1693746067536,8.072,19.326,19.31,100.0]
[1693746067726,3.60070683,19.325,19.31,100.0]
[1693746068138,3.60070683,19.333,19.31,100.0]
[1693746068329,8.067,19.337,19.31,100.0]
[1693746068530,92.3523,19.341,19.31,100.0]
[1693746068531,4.19531564,19.336,19.31,100.0]
[1693746068734,100.4173,19.341,19.31,100.0]
[1693746068735,4.19531564,19.338,19.31,100.0]
[1693746068928,4.19531564,19.335,19.311,45.73409656]
[1693746069231,42.153209,19.337,19.311,45.73409656]
[1693746069450,41.83022773,19.347,19.312,55.0]
[1693746069742,4.00597419,19.347,19.313,20.0]
[1693746069923,4.00597419,19.347,19.314,113.10745269]
[1693746070123,4.00597419,19.348,19.315,20.0]
[1693746070326,4.00597419,19.348,19.316,113.68523047]
[1693746070742,4.00597419,19.35,19.317,118.4671]
[1693746070942,4.00597419,19.35,19.318,113.68523047]
[1693746071146,4.00597419,19.35,19.319,20.0]
[1693746071328,15.5134313,19.355,19.319,20.0]
[1693746071329,15.5134313,19.355,19.32,113.68523047]
[1693746071524,27.00978314,19.362,19.321,214.76245173]
[1693746071726,3.43324544,19.361,19.322,113.68523047]
[1693746071928,20.690406,19.363,19.323,40.56245173]
[1693746071929,4.4452696,19.362,19.323,40.56245173]
[1693746072141,19.5081696,19.362,19.324,113.68523047]
[1693746072339,20.0,19.361,19.324,154.2476822]
[1693746072535,4.94461036,19.36,19.325,25.73409656]
[1693746072734,13.00261036,19.36,19.326,58.68523047]
[1693746072928,20.0,19.359,19.326,153.72473047]
[1693746073246,4.94461036,19.358,19.326,179.45882703]
[1693746073537,33.00361036,19.358,19.327,25.73409656]
[1693746073733,15.5134313,19.357,19.328,20.0]
[1693746073929,4.94461036,19.356,19.328,20.0]
[1693746074137,4.94461036,19.361,19.329,25.73409656]
[1693746074337,24.94461036,19.361,19.33,20.0]
[1693746074645,24.94461036,19.361,19.331,25.73409656]
[1693746074834,24.94461036,19.361,19.332,75.0]
[1693746075035,24.94461036,19.361,19.333,25.73409656]
[1693746075229,24.94461036,19.361,19.334,55.0]
[1693746075624,48.51504166,19.361,19.333,25.73409656]
[1693746075830,8.061,19.351,19.326,95.0395]
[1693746076141,8.063,19.347,19.326,95.0395]
[1693746076331,4.94461036,19.346,19.32,25.73409656]
[1693746076645,4.94461036,19.341,19.321,91.7292]
[1693746076833,8.065,19.342,19.321,91.7292]
[1693746077142,63.066,19.341,19.32,25.73409656]
[1693746077325,3.2915329,19.339,19.313,25.73409656]
[1693746077527,3.2915329,19.34,19.313,25.73409656]
[1693746077742,3.61757494,19.35,19.314,58.68523047]
[1693746077951,3.61757494,19.35,19.315,25.73409656]
[1693746078130,15.5134313,19.349,19.316,58.68523047]
[1693746078331,7.21347382,19.347,19.317,20.0]
[1693746078528,4.69350086,19.347,19.318,25.73409656]
[1693746078726,4.69350086,19.345,19.319,20.0]
[1693746078938,55.0,19.344,19.32,25.73409656]
[1693746079150,4.69350086,19.348,19.32,25.73409656]
[1693746079328,4.69350086,19.346,19.321,20.0]
[1693746079529,4.69350086,19.348,19.322,25.73409656]
[1693746079745,4.69350086,19.346,19.322,25.73409656]
[1693746079940,8.065,19.343,19.323,20.0]
[1693746080135,4.69350086,19.342,19.323,20.0]
[1693746080440,4.69350086,19.34,19.316,25.73409656]
[1693746080646,55.0,19.339,19.317,20.0]
[1693746080944,55.0,19.339,19.317,45.73409656]
[1693746081141,55.0,19.339,19.318,25.73409656]
[1693746081447,55.0,19.339,19.319,20.0]
[1693746081644,55.0,19.339,19.32,25.73409656]
[1693746081943,55.0,19.339,19.321,20.0]
[1693746082130,55.0,19.339,19.321,45.73409656]
[1693746082745,20.0,19.338,19.312,58.68523047]
[1693746082945,8.068,19.334,19.313,20.0]
[1693746083245,55.0,19.337,19.311,20.0]
[1693746083439,2.63741273,19.336,19.311,20.0]
[1693746083635,2.63741273,19.336,19.313,25.73409656]
[1693746084345,63.067,19.337,19.313,25.73409656]
[1693746084648,55.0,19.337,19.313,25.73409656]
[1693746084944,55.0,19.337,19.313,88.80109656]
[1693746085143,2.75684821,19.336,19.313,25.73409656]
[1693746085334,3.75353205,19.342,19.314,25.73409656]
[1693746085844,3.75353205,19.342,19.315,55.0]
[1693746086051,3.75353205,19.342,19.315,153.9569]
[1693746086348,3.75353205,19.343,19.315,153.9569]
[1693746086650,58.75353205,19.343,19.315,153.9569]
[1693746086852,58.75353205,19.343,19.316,20.0]
[1693746086853,3.75353205,19.343,19.316,20.0]
[1693746087041,93.5865,19.346,19.317,55.0]
[1693746087236,2.7638902,19.345,19.318,45.73409656]
[1693746087744,2.7638902,19.345,19.317,58.68523047]
[1693746087745,26.37706921,19.345,19.319,90.3291]
[1693746087953,8.066,19.341,19.319,90.3291]
[1693746088134,8.066,19.341,19.311,45.73409656]
[1693746088135,4.15862489,19.34,19.311,45.73409656]
[1693746088340,24.15862489,19.34,19.311,61.28327556]
[1693746088541,8.069,19.332,19.311,61.28327556]
[1693746088847,15.54560915,19.339,19.312,20.0]
[1693746089045,15.54560915,19.339,19.311,20.0]
[1693746089046,55.0,19.331,19.311,20.0]
[1693746089349,8.069,19.332,19.311,20.0]
[1693746089548,2.91059136,19.33,19.311,20.0]
[1693746089736,75.34320015,19.337,19.311,170.126691]
[1693746089939,59.797591,19.337,19.311,170.126691]
[1693746090166,8.067,19.337,19.311,170.126691]
[1693746090353,2.53937081,19.336,19.311,110.3291]
[1693746090672,3.30806179,19.339,19.311,136.06319656]
[1693746090833,23.30806179,19.341,19.312,80.73409656]
[1693746091039,3.30806179,19.339,19.313,20.0]
[1693746091250,23.30806179,19.339,19.313,20.0]
[1693746091439,20.0,19.339,19.314,55.0]
[1693746092247,35.54401401,19.339,19.314,55.0]
[1693746092444,20.0,19.339,19.314,55.0]
[1693746092643,10.59910854,19.346,19.314,55.0]
[1693746092840,10.59910854,19.346,19.315,45.73409656]
[1693746093040,8.064,19.346,19.316,55.0]
[1693746093250,96.9288,19.349,19.317,25.73409656]
[1693746093551,20.0,19.348,19.318,75.0]
[1693746093749,3.68624618,19.347,19.318,100.73409656]
[1693746094141,3.68624618,19.349,19.319,121.31539656]
[1693746094337,3.74002222,19.352,19.32,20.0]
[1693746094543,3.74002222,19.348,19.321,55.0]
[1693746094738,3.74002222,19.348,19.322,20.0]
[1693746094938,31.80302222,19.348,19.322,20.0]
[1693746095152,15.54401401,19.347,19.322,20.0]
[1693746095356,8.065,19.342,19.321,20.0]
[1693746095554,55.0,19.341,19.321,20.0]
[1693746095755,2.7995437,19.34,19.321,20.0]
[1693746096055,18.9663929,19.344,19.322,25.73409656]
[1693746096251,3.42237889,19.344,19.323,20.0]
[1693746096551,3.42237889,19.346,19.323,20.0]
[1693746096741,8.062,19.35,19.324,25.73409656]
[1693746096942,4.07420608,19.348,19.324,25.73409656]
[1693746097139,8.063,19.347,19.321,92.6064]
[1693746097337,4.07420608,19.346,19.322,20.0]
[1693746097846,4.07420608,19.346,19.323,92.6064]
[1693746098046,4.07420608,19.346,19.323,118.34049656]
[1693746098241,4.07420608,19.347,19.323,25.73409656]
[1693746098447,4.07420608,19.347,19.324,55.0]
[1693746099051,4.07420608,19.347,19.325,92.6064]
[1693746099448,4.07420608,19.347,19.324,55.0]
[1693746099648,4.07420608,19.347,19.325,91.6048]
[1693746099957,4.07420608,19.35,19.326,55.0]
[1693746100146,387.51060414,19.377,19.327,20.0]
[1693746100147,12.13320608,19.356,19.327,20.0]
[1693746100345,4.07420608,19.356,19.327,45.73409656]
[1693746100548,4.07420608,19.356,19.328,55.0]
[1693746100862,4.07420608,19.356,19.329,45.73409656]
[1693746101054,4.07420608,19.356,19.33,55.0]
[1693746101241,4.07420608,19.356,19.331,45.73409656]
[1693746101446,4.07420608,19.356,19.332,55.0]
[1693746101656,4.07420608,19.356,19.333,45.73409656]
[1693746101852,20.0,19.358,19.334,55.0]
[1693746102055,4.07420608,19.357,19.335,25.73409656]
[1693746102249,4.07420608,19.357,19.336,55.0]
[1693746102645,12.13320608,19.357,19.334,91.6048]
[1693746102859,19.62272499,19.357,19.334,91.6048]
[1693746103047,12.13320608,19.357,19.334,91.6048]
[1693746103241,4.07420608,19.357,19.333,20.0]
[1693746103447,4.07420608,19.357,19.334,55.0]
[1693746103648,4.81635409,19.358,19.335,97.1965]
[1693746104067,63.059,19.357,19.335,97.1965]
[1693746104351,8.06,19.355,19.335,97.1965]
[1693746104553,4.81635409,19.354,19.335,97.1965]
[1693746104754,4.81635409,19.352,19.335,97.1965]
[1693746104965,55.0,19.351,19.335,97.1965]
[1693746105165,4.81635409,19.35,19.335,97.1965]
[1693746106051,4.81635409,19.353,19.331,75.0]
[1693746106266,12.87535409,19.356,19.332,55.0]
[1693746106454,12.87535409,19.356,19.332,153.394]
[1693746106455,67.87535409,19.356,19.332,153.394]
[1693746106763,59.81635409,19.356,19.333,20.0]
[1693746107155,59.81635409,19.356,19.333,45.73409656]
[1693746107657,12.87435409,19.358,19.334,80.73409656]
[1693746107858,4.81635409,19.358,19.334,80.73409656]
[1693746108055,4.81635409,19.358,19.335,98.394]
[1693746108260,4.81635409,19.358,19.336,55.0]
[1693746108468,4.81635409,19.36,19.336,55.0]
[1693746109268,4.81635409,19.36,19.336,80.73409656]
[1693746110567,12.87435409,19.36,19.336,80.73409656]
[1693746110869,4.81635409,19.358,19.336,80.73409656]
[1693746112688,12.87435409,19.358,19.336,80.73409656]
[1693746112964,4.81635409,19.358,19.336,80.73409656]
[1693746113851,4.81635409,19.358,19.337,25.73409656]
[1693746114053,4.81635409,19.359,19.338,55.0]
[1693746114260,28.056,19.364,19.339,25.73409656]
[1693746114572,4.06614928,19.363,19.34,55.0]
[1693746115358,12.12214928,19.363,19.34,55.0]
[1693746115866,4.06614928,19.365,19.341,20.0]
[1693746116056,4.06614928,19.365,19.342,55.0]
[1693746116368,12.12114928,19.365,19.343,20.0]
[1693746116668,12.12114928,19.365,19.344,55.0]
[1693746117251,12.12114928,19.365,19.345,98.0271]
[1693746117456,55.0,19.364,19.345,98.0271]
[1693746117663,4.06614928,19.363,19.345,98.0271]
[1693746118574,24.45431957,19.368,19.346,55.0]
[1693746118873,4.45431957,19.368,19.346,80.73409656]
[1693746119059,4.45431957,19.372,19.347,25.73409656]
[1693746119380,4.45431957,19.372,19.348,75.0]
[1693746119559,4.45431957,19.375,19.349,25.73409656]
[1693746119875,12.50531957,19.375,19.35,75.0]
[1693746120069,12.50531957,19.375,19.35,100.73409656]
[1693746120454,12.50531957,19.375,19.351,25.73409656]
[1693746120659,12.50531957,19.375,19.35,75.0]
[1693746121767,4.45431957,19.373,19.35,100.73409656]
[1693746121969,4.45431957,19.373,19.35,75.0]
[1693746122272,12.50631957,19.373,19.35,75.0]
[1693746122459,55.0,19.372,19.35,75.0]
[1693746122656,12.50731957,19.371,19.35,20.0]
[1693746122967,55.0,19.37,19.349,20.0]
[1693746123168,4.45431957,19.369,19.347,20.0]
[1693746123665,12.50831957,19.369,19.347,20.0]
[1693746123867,55.0,19.368,19.347,20.0]
[1693746124054,4.45431957,19.367,19.348,55.0]
[1693746124370,4.45431957,19.367,19.349,20.0]
[1693746124570,4.45431957,19.367,19.349,45.73409656]
[1693746124779,4.45431957,19.37,19.349,45.73409656]
[1693746124968,59.45431957,19.37,19.346,57.658463]
[1693746125162,20.0,19.369,19.344,25.73409656]
[1693746125360,8.055,19.366,19.334,42.22727271]
[1693746125565,59.88126399,19.365,19.335,26.044126]
[1693746125868,12.93626399,19.365,19.335,116.542326]
[1693746126070,4.88126399,19.363,19.335,245.232507]
[1693746126468,4.88126399,19.363,19.336,20.0]
[1693746126669,4.88126399,19.363,19.337,26.044126]
[1693746127170,55.0,19.362,19.337,26.044126]
[1693746127477,4.88126399,19.361,19.337,26.044126]
[1693746127778,4.88126399,19.363,19.337,26.044126]
[1693746127955,4.88126399,19.361,19.337,26.044126]
[1693746128154,4.88126399,19.361,19.338,20.0]
[1693746128379,4.88126399,19.361,19.339,25.73409656]
[1693746128578,4.88126399,19.363,19.34,20.0]
[1693746128785,185.48418119,19.369,19.335,219.188381]
[1693746128786,8.057,19.361,19.335,219.188381]
[1693746129080,8.057,19.361,19.323,400.1]
[1693746129081,8.06,19.353,19.328,25.73409656]
[1693746129275,8.06,19.353,19.329,20.0]
[1693746129576,3.49606774,19.355,19.329,20.0]
[1693746129762,3.49606774,19.355,19.33,25.73409656]
[1693746129961,58.49606774,19.355,19.331,20.0]
[1693746130163,58.49606774,19.355,19.332,25.73409656]
[1693746130362,58.49606774,19.355,19.333,20.0]
[1693746130567,3.7945175,19.358,19.333,20.0]
[1693746130766,23.7945175,19.358,19.334,25.73409656]
[1693746131077,20.0,19.358,19.335,55.0]
[1693746131374,91.5451,19.359,19.336,25.73409656]
[1693746131561,8.057,19.362,19.337,55.0]
[1693746131763,2.945752,19.363,19.338,45.73409656]
[1693746131959,63.056,19.363,19.339,55.0]
[1693746132160,2.58087405,19.362,19.34,45.73409656]
[1693746132559,4.36396883,19.365,19.34,136.72929656]
[1693746132776,4.36396883,19.361,19.34,136.72929656]
[1693746132973,4.36396883,19.364,19.341,55.0]
[1693746133164,4.36396883,19.364,19.342,45.73409656]
[1693746133364,12.41996883,19.364,19.342,45.73409656]
[1693746133874,27.95935002,19.364,19.342,45.73409656]
[1693746134279,4.36396883,19.362,19.342,45.73409656]
[1693746135279,12.42096883,19.362,19.342,45.73409656]
[1693746135485,55.0,19.361,19.342,45.73409656]
[1693746135777,4.36396883,19.36,19.342,45.73409656]
[1693746136079,4.36396883,19.362,19.342,25.73409656]
[1693746136259,12.41996883,19.365,19.343,75.0]
[1693746136462,8.056,19.364,19.343,100.73409656]
[1693746136663,4.36396883,19.363,19.343,45.73409656]
[1693746136878,8.057,19.362,19.343,45.73409656]
[1693746137074,4.36396883,19.361,19.343,45.73409656]
[1693746137477,8.057,19.361,19.34,90.9952]
[1693746137681,4.36396883,19.36,19.341,20.0]
[1693746137885,59.36396883,19.36,19.336,144.78144543]
[1693746138177,4.36396883,19.36,19.336,144.78144543]
[1693746138384,8.056,19.363,19.336,144.78144543]
[1693746138677,4.36396883,19.362,19.336,144.78144543]
[1693746138870,4.36396883,19.362,19.337,55.0]
[1693746139072,4.36396883,19.362,19.338,45.86674543]
[1693746139383,8.057,19.362,19.338,45.86674543]
[1693746139769,2.97028214,19.365,19.338,45.86674543]
[1693746140071,11.02528214,19.365,19.338,45.86674543]
[1693746140280,55.0,19.364,19.338,45.86674543]
[1693746140479,3.94086026,19.363,19.338,45.86674543]
[1693746140673,3.94086026,19.363,19.339,55.0]
[1693746140877,3.94086026,19.365,19.34,20.0]
[1693746141075,3.94086026,19.365,19.341,55.0]
[1693746141277,23.94086026,19.368,19.342,45.86674543]
[1693746141485,23.94086026,19.368,19.343,55.0]
[1693746141678,23.94086026,19.368,19.344,25.86674543]
[1693746141882,11.99486026,19.368,19.345,55.0]
[1693746142090,11.99486026,19.368,19.345,80.86674543]
[1693746142274,3.94086026,19.368,19.345,135.86674543]
[1693746142481,8.054,19.368,19.346,25.86674543]
[1693746142689,4.73213853,19.367,19.346,117.18524543]
[1693746143380,12.78513853,19.37,19.347,55.0]
[1693746143578,4.73213853,19.368,19.348,25.86674543]
[1693746143789,4.73213853,19.368,19.349,55.0]
[1693746144379,4.73213853,19.368,19.348,25.86674543]
[1693746145390,4.73213853,19.368,19.349,55.0]
[1693746146778,4.73213853,19.368,19.348,25.86674543]
[1693746147389,4.73213853,19.368,19.349,55.0]
[1693746148886,55.0,19.367,19.348,25.86674543]
[1693746149088,4.73213853,19.366,19.346,91.3185]
[1693746150696,4.73213853,19.366,19.347,55.0]
[1693746150878,55.0,19.365,19.347,55.0]
[1693746151485,55.0,19.365,19.346,117.18524543]